bitfinex/quotes_ETHUSD_20250930
["timestamp","ask_amount","ask_price","bid_price","bid_amount"]
[1759246823365,2.43217881,4113.3,4111.9,0.002]
[1759246823366,2.43189229,4112.1,4111.9,0.002]
[1759246823586,2.93,4112.8,4111.9,0.002]
[1759246823587,2.43178902,4112.2,4111.9,0.002]
[1759246823744,2.43190661,4112.0,4111.9,0.002]
[1759246823943,2.43190661,4112.0,4111.9,0.711]
[1759246824353,2.43183081,4112.2,4111.9,0.711]
[1759246824552,2.43184635,4112.2,4112.0,0.709]
[1759246824774,2.43180128,4112.2,4111.9,0.002]
[1759246825081,0.001,4112.3,4111.9,0.002]
[1759246825241,2.43190661,4112.0,4111.9,0.002]
[1759246825977,0.001,4112.3,4111.9,0.711]
[1759246826289,0.001,4112.3,4112.1,5.62645789]
[1759246826475,0.001,4112.3,4112.2,0.63374579]
[1759246826660,0.001,4112.3,4112.2,2.43178833]
[1759246826842,0.001,4112.3,4112.2,3.26238833]
[1759246827848,0.001,4112.3,4112.2,4.05438833]
[1759246829947,0.001,4112.3,4112.2,4.07870621]
[1759246830147,0.001,4112.3,4112.2,4.05438833]
[1759246830565,0.001,4112.3,4112.2,5.26585944]
[1759246830766,0.001,4112.3,4112.2,7.54425944]
[1759246830974,0.001,4112.8,4112.7,3.22349269]
[1759246831180,0.001,4112.8,4112.7,8.8742655]
[1759246831382,0.001,4112.8,4112.7,9.68055058]
[1759246831554,0.001,4112.8,4112.7,10.89176251]
[1759246834689,0.001,4112.8,4112.7,13.81676251]
[1759246837489,0.001,4112.8,4112.7,7.66826982]
[1759246837683,0.001,4112.8,4112.7,12.55766251]
[1759246837892,0.001,4112.8,4112.7,13.02376251]
[1759246838092,0.001,4112.8,4112.7,12.55766251]
[1759246838396,0.001,4112.8,4112.7,10.59226982]
[1759246838559,0.001,4112.8,4112.7,8.67105789]
[1759246839385,0.001,4112.8,4112.7,8.91395789]
[1759246839974,0.001,4112.8,4112.7,9.38005789]
[1759246840386,0.001,4112.8,4112.7,11.81155058]
[1759246840884,0.001,4112.8,4112.7,9.38005789]
[1759246841086,0.001,4112.8,4112.7,10.56121695]
[1759246841389,0.001,4112.8,4112.7,9.85221695]
[1759246842568,0.001,4112.8,4112.7,8.67105789]
[1759246843367,0.001,4112.8,4112.7,3.0446]
[1759246843694,0.001,4112.8,4112.7,8.67105789]
[1759246845091,0.2359,4112.8,4112.7,3.0436]
[1759246845589,0.001,4112.8,4112.7,3.06791492]
[1759246846882,0.001,4112.8,4112.7,5.49940761]
[1759246847090,0.001,4112.8,4112.7,3.2865]
[1759246847400,0.001,4112.8,4112.7,7.09196848]
[1759246847900,0.001,4112.8,4112.7,7.76236848]
[1759246848205,0.001,4112.8,4112.7,7.88396848]
[1759246852367,0.001,4112.8,4112.7,4.28026848]
[1759246852577,0.001,4112.8,4112.7,9.60223368]
[1759246852903,0.001,4112.8,4112.7,8.66705789]
[1759246853604,0.001,4112.8,4112.7,11.09855058]
[1759246856590,2.401,4114.4,4112.7,11.09855058]
[1759246856591,0.001,4115.9,4113.5,11.25291578]
[1759246856794,0.001,4115.9,4114.7,5.62645789]
[1759246857019,0.001,4115.9,4115.8,5.62645789]
[1759246857180,0.001,4115.9,4115.8,8.54445789]
[1759246857729,0.001,4115.9,4115.8,8.78735789]
[1759246857882,0.001,4115.9,4115.8,12.13963498]
[1759246858284,0.001,4115.9,4115.8,9.70997368]
[1759246858505,0.001,4115.9,4115.8,8.78735789]
[1759246859214,0.001,4115.9,4115.8,9.27873965]
[1759246859682,0.001,4115.9,4115.8,9.03583965]
[1759246860014,0.001,4115.9,4115.8,9.03483965]
[1759246860177,0.001,4115.9,4114.9,5.07306434]
[1759246860380,0.001,4115.9,4115.2,0.792]
[1759246860381,0.6862,4115.8,4115.2,0.792]
[1759246860612,0.6862,4115.8,4115.3,2.917]
[1759246860799,0.2349,4115.8,4115.3,2.917]
[1759246861389,3.11592076,4115.7,4115.4,2.917]
[1759246861611,0.2349,4115.6,4115.5,2.917]
[1759246862386,0.6862,4115.6,4115.5,2.917]
[1759246863997,0.001,4115.9,4115.5,2.917]
[1759246864196,2.42966943,4115.8,4115.5,2.917]
[1759246864417,0.001,4115.9,4115.5,2.917]
[1759246864607,0.2349,4115.8,4115.5,2.917]
[1759246864801,0.2349,4115.8,4115.4,0.4896168]
[1759246865003,0.001,4115.9,4115.0,0.2429]
[1759246865208,0.001,4115.9,4115.1,2.916]
[1759246865209,2.42970055,4115.8,4115.1,2.916]
[1759246865404,0.001,4115.9,4115.2,0.39509]
[1759246865405,2.43061419,4115.9,4115.2,0.39509]
[1759246865698,2.43061419,4115.9,4115.3,2.916]
[1759246865898,0.001,4115.9,4115.3,2.916]
[1759246866105,2.42979373,4115.6,4115.3,2.916]
[1759246866314,2.42967834,4115.8,4115.3,2.916]
[1759246866622,2.42984394,4115.5,4115.3,2.916]
[1759246866826,0.2349,4115.4,4115.3,2.916]
[1759246867006,2.66479745,4115.4,4115.3,2.916]
[1759246867206,0.2349,4115.4,4115.3,3.0376]
[1759246867613,2.42973916,4115.7,4115.3,3.0376]
[1759246868015,0.001,4115.9,4115.6,0.1216]
[1759246868402,2.4296613,4115.8,4115.7,2.916]
[1759246868604,0.001,4115.9,4115.7,2.916]
[1759246868605,2.43060409,4115.9,4115.7,2.916]
[1759246869300,2.43061517,4115.9,4115.8,2.916]
[1759246869626,2.66551517,4115.9,4115.8,2.916]
[1759246869830,2.42972033,4115.7,4115.6,0.1216]
[1759246870016,2.42966369,4115.8,4115.6,3.0376]
[1759246870215,0.001,4115.9,4115.6,3.7193]
[1759246870419,2.43062188,4115.9,4115.7,2.9402972]
[1759246870598,0.001,4115.9,4115.8,0.2429]
[1759246870801,0.001,4115.9,4115.7,3.24647972]
[1759246872522,0.001,4115.9,4115.8,3.17435791]
[1759246872725,0.001,4115.9,4115.8,6.88135791]
[1759246873045,0.001,4115.9,4115.8,6.8570613]
[1759246873246,0.001,4115.9,4115.8,9.25436673]
[1759246873632,0.001,4115.9,4115.8,11.65436673]
[1759246874039,0.001,4115.9,4115.8,5.31230543]
[1759246874235,0.001,4115.9,4115.8,2.915]
[1759246874442,0.001,4115.9,4115.2,1.5124]
[1759246874443,0.001,4115.9,4115.6,0.792]
[1759246874614,0.001,4115.9,4115.7,2.915]
[1759246877006,0.001,4115.9,4115.8,2.915]
[1759246877213,0.001,4115.9,4115.8,2.914]
[1759246877864,0.001,4115.9,4115.4,2.42989468]
[1759246878064,0.001,4115.9,4115.5,2.914]
[1759246878365,0.001,4115.9,4115.5,5.58303323]
[1759246878578,0.001,4115.9,4115.4,2.42988316]
[1759246878865,0.001,4115.9,4115.5,2.914]
[1759246879071,0.001,4115.9,4115.6,0.02429779]
[1759246879275,0.001,4115.9,4115.8,3.2216613]
[1759246879438,0.001,4115.9,4115.8,3.24595791]
[1759246879765,0.001,4115.9,4115.8,6.32675791]
[1759246879970,0.001,4115.9,4115.8,8.69976673]
[1759246880335,0.001,4115.9,4115.8,19.92640609]
[1759246880534,0.001,4115.9,4115.8,20.04800609]
[1759246881163,0.001,4115.9,4115.8,14.43468641]
[1759246882669,0.001,4115.9,4115.8,17.34868641]
[1759246883744,0.001,4115.9,4115.8,10.53222511]
[1759246883936,0.001,4115.9,4115.8,11.07758098]
[1759246884337,0.001,4115.9,4115.8,0.1216]
[1759246884547,0.001,4115.9,4115.8,3.0346]
[1759246885169,0.001,4115.9,4115.8,3.05889661]
[1759246885555,0.001,4115.9,4115.8,3.0346]
[1759246885756,0.001,4115.9,4115.8,0.1216]
[1759246885956,0.6707,4115.9,4115.8,3.0346]
[1759246886157,0.2419,4115.9,4115.8,3.0346]
[1759246886383,0.001,4115.9,4115.8,3.0346]
[1759246887065,0.2419,4115.9,4115.8,3.0346]
[1759246887959,3.10030227,4115.9,4115.8,3.0346]
[1759246889483,3.65339174,4115.9,4115.8,0.1216]
[1759246889670,2.42972033,4115.7,4115.1,0.48523503]
[1759246889871,2.4299565,4115.3,4115.2,0.58]
[1759246890069,2.4299565,4115.3,4114.8,0.002]
[1759246890070,0.6697,4115.3,4114.8,0.002]
[1759246890270,2.43013365,4115.0,4114.9,2.912]
[1759246890587,3.09983365,4115.0,4114.9,2.912]
[1759246891695,2.43019271,4114.9,4114.8,0.002]
[1759246891897,2.67109271,4114.9,4114.8,2.914]
[1759246892079,2.67109271,4114.9,4114.8,0.002]
[1759246892080,3.09989271,4114.9,4114.8,0.002]
[1759246892604,3.64444868,4114.9,4114.8,0.002]
[1759246893170,0.6697,4115.4,4114.8,0.002]
[1759246893472,0.6697,4115.4,4114.8,0.02630251]
[1759246893678,2.43019271,4114.9,4114.8,0.02630251]
[1759246893985,2.43019271,4114.9,4114.8,0.002]
[1759246894180,0.6697,4115.4,4114.8,0.002]
[1759246894380,0.4288,4115.4,4114.8,0.002]
[1759246894695,2.43001555,4115.2,4114.8,0.002]
[1759246894876,2.43019271,4114.9,4114.8,0.002]
[1759246895799,3.09989271,4114.9,4114.8,0.002]
[1759246896180,3.09989271,4114.9,4114.8,2.914]
[1759246896672,2.43019271,4114.9,4114.8,2.914]
[1759246896873,2.67109271,4114.9,4114.8,0.002]
[1759246897670,2.912,4115.8,4114.8,0.002]
[1759246897671,2.67085262,4115.4,4114.8,0.002]
[1759246897900,2.4,4115.7,4114.8,0.002]
[1759246897901,0.001,4115.9,4114.8,0.002]
[1759246898077,2.43011511,4115.1,4114.8,0.02630251]
[1759246898397,2.43005614,4115.2,4114.8,0.26550251]
[1759246898567,2.42972033,4115.7,4114.8,0.002]
[1759246898768,2.42977937,4115.6,4114.8,0.002]
[1759246899068,2.43019271,4114.9,4114.8,0.002]
[1759246899601,3.09989271,4114.9,4114.8,3.0356]
[1759246899781,2.43019271,4114.9,4114.8,3.0356]
[1759246900096,2.67109271,4114.9,4114.8,3.0356]
[1759246900297,3.09989271,4114.9,4114.8,3.0356]
[1759246900678,3.09989271,4114.9,4114.8,0.002]
[1759246900679,3.40739021,4114.9,4114.8,0.002]
[1759246900881,5.80739021,4114.9,4114.8,0.002]
[1759246901400,8.71839021,4114.9,4114.8,0.002]
[1759246903371,5.80739021,4114.9,4114.8,0.002]
[1759246903704,2.43019271,4114.9,4114.8,0.1236]
[1759246907787,3.2133,4115.4,4114.8,0.1236]
[1759246908008,2.43019271,4114.9,4114.8,0.1236]
[1759246909326,3.63121375,4114.9,4114.8,0.002]
[1759246910422,4.95174911,4115.0,4114.8,0.002]
[1759246910728,2.42990483,4115.4,4114.8,0.1236]
[1759246910893,2.4299565,4115.3,4115.1,0.1216]
[1759246911308,0.2329,4115.7,4115.2,0.1216]
[1759246911527,4.8593226,4115.8,4115.2,0.1216]
[1759246911725,0.001,4115.9,4115.6,0.1216]
[1759246911898,2.42972033,4115.7,4115.6,0.1216]
[1759246912718,2.42968055,4115.8,4115.6,0.1216]
[1759246912911,0.001,4115.9,4115.6,0.1216]
[1759246913112,2.42972033,4115.7,4115.6,0.1216]
[1759246914729,2.42972033,4115.7,4115.0,0.246]
[1759246914730,2.42998753,4115.3,4115.0,2.91]
[1759246914935,2.42994819,4115.4,4115.0,2.91]
[1759246915107,2.42983506,4115.6,4115.2,0.1216]
[1759246915443,0.001,4115.9,4115.3,0.8241]
[1759246915642,2.429706,4115.8,4115.3,1.44294913]
[1759246915806,0.001,4115.9,4115.8,0.1216]
[1759246916541,0.001,4115.9,4115.8,0.8241]
[1759246916941,0.001,4115.9,4115.8,3.2537613]
[1759246917358,0.001,4115.9,4115.8,0.8241]
[1759246917551,0.001,4115.9,4115.8,3.2766]
[1759246917837,0.001,4115.9,4115.8,4.34938783]
[1759246918239,0.001,4115.9,4115.8,1.44038783]
[1759246918445,0.001,4115.9,4115.8,3.7331]
[1759246919152,0.001,4115.9,4115.8,3.2766]
[1759246919748,2.43060227,4115.9,4115.8,0.1216]
[1759246919912,3.12230227,4115.9,4115.8,0.1216]
[1759246920412,3.67758166,4115.9,4115.8,0.1216]
[1759246920614,3.21878166,4115.9,4115.8,0.1216]
[1759246920960,2.43060227,4115.9,4115.8,0.1216]
[1759246921118,3.12230227,4115.9,4115.8,0.1216]
[1759246921834,2.66350227,4115.9,4115.8,0.1216]
[1759246922040,2.43060227,4115.9,4115.8,0.1216]
[1759246922218,3.12230227,4115.9,4115.8,0.1216]
[1759246922833,2.43060227,4115.9,4115.8,0.1216]
[1759246923565,3.12230227,4115.9,4115.8,0.1216]
[1759246923879,3.91758166,4115.9,4115.8,0.1216]
[1759246924022,3.91758166,4115.9,4114.8,0.002]
[1759246924023,2.43018051,4115.0,4114.8,0.002]
[1759246924462,5.33772033,4115.7,4114.9,0.3676]
[1759246924463,2.42994645,4115.4,4114.9,0.3676]
[1759246924632,2.42996455,4115.3,4115.0,0.7025]
[1759246924833,2.4300317,4115.2,4115.1,0.246]
[1759246925132,2.42993612,4115.4,4115.2,0.1216]
[1759246925334,2.4299088,4115.4,4115.2,0.1216]
[1759246925554,2.4299565,4115.3,4115.2,0.1216]
[1759246926154,3.1216565,4115.3,4115.2,0.1216]
[1759246927553,0.1216,4115.7,4115.2,0.1216]
[1759246927753,4.8296613,4115.8,4114.9,0.246]
[1759246927923,2.42983142,4115.6,4114.9,0.246]
[1759246928123,0.001,4115.9,4114.9,0.7025]
[1759246928352,2.43060308,4115.9,4115.0,3.15693274]
[1759246928552,0.001,4115.9,4115.1,1.01839327]
[1759246928761,0.001,4115.9,4115.2,0.02430015]
[1759246928957,2.42989425,4115.5,4115.2,0.02430015]
[1759246929159,2.42977937,4115.6,4115.3,0.246]
[1759246929665,2.42983841,4115.5,4115.3,0.246]
[1759246929834,0.001,4115.9,4115.2,0.246]
[1759246930159,2.4299404,4115.4,4115.2,0.246]
[1759246930356,2.401,4115.9,4114.8,0.002]
[1759246930583,2.43010019,4115.1,4114.8,0.002]
[1759246930795,2.43003108,4115.2,4114.8,0.002]
[1759246930977,2.43009922,4115.1,4114.8,0.002]
[1759246931181,2.43019271,4114.9,4114.8,0.002]
[1759246931351,2.43003877,4115.2,4114.8,0.236]
[1759246931550,2.43003877,4115.2,4114.8,0.6841]
[1759246931780,2.43007969,4115.1,4114.8,0.6841]
[1759246931985,2.42989745,4115.4,4114.8,0.6841]
[1759246931986,2.43002341,4115.2,4114.8,0.6841]
[1759246932354,2.43008506,4115.1,4114.8,0.6841]
[1759246932579,2.43013487,4115.0,4114.8,0.236]
[1759246932883,2.43018412,4115.0,4114.8,0.236]
[1759246933084,2.43018412,4115.0,4114.8,0.002]
[1759246933288,2.43019271,4114.9,4114.8,0.002]
[1759246933891,3.12709271,4114.9,4114.8,0.002]
[1759246934051,3.68281383,4114.9,4114.8,0.002]
[1759246937567,3.80441383,4114.9,4114.8,0.002]
[1759246938901,3.10751383,4114.9,4114.8,0.002]
[1759246939100,3.35711383,4114.9,4114.8,0.002]
[1759246939311,3.79111383,4114.9,4114.8,0.002]
[1759246939669,3.35711383,4114.9,4114.8,0.002]
[1759246939870,3.10751383,4114.9,4114.8,0.002]
[1759246940692,3.35711383,4114.9,4114.8,0.002]
[1759246941069,3.10751383,4114.9,4114.8,0.002]
[1759246942784,3.35711383,4114.9,4114.8,0.002]
[1759246943512,2.55179271,4114.9,4114.8,0.002]
[1759246943674,2.43019271,4114.9,4114.8,0.002]
[1759246945680,2.43019271,4114.9,4114.8,0.6787]
[1759246945913,0.1216,4115.7,4114.8,0.6787]
[1759246946221,2.42989745,4115.4,4114.9,0.70100192]
[1759246946420,2.42989745,4115.4,4115.0,0.99002999]
[1759246946622,2.42985416,4115.5,4115.3,0.1216]
[1759246946825,0.001,4115.9,4115.4,0.6767]
[1759246947112,2.42977937,4115.6,4115.4,0.6767]
[1759246947304,2.42983841,4115.5,4115.0,0.31332999]
[1759246947620,2.42972433,4115.7,4115.4,0.1216]
[1759246947788,2.42972433,4115.7,4115.5,0.6767]
[1759246948111,2.42972033,4115.7,4115.6,0.2377]
[1759246948426,0.001,4115.9,4115.6,0.6767]
[1759246948582,0.001,4115.9,4115.8,0.1216]
[1759246948977,2.43060227,4115.9,4115.8,0.7983]
[1759246949421,2.43060227,4115.9,4115.8,0.1216]
[1759246949593,2.43005071,4115.2,4114.9,0.6767]
[1759246949789,2.43005489,4115.2,4115.1,0.1216]
[1759246950298,2.43005489,4115.2,4115.1,0.3593]
[1759246950618,2.42997037,4115.3,4115.1,0.7983]
[1759246950814,2.42997037,4115.3,4115.2,0.6767]
[1759246951116,2.42994252,4115.4,4115.2,0.6767]
[1759246951417,2.905,4115.9,4115.3,0.6767]
[1759246951583,2.4298771,4115.5,4115.3,0.6767]
[1759246951784,2.4296613,4115.8,4115.5,0.1216]
[1759246951987,2.42977937,4115.6,4115.5,0.3593]
[1759246953233,0.001,4115.9,4115.5,0.2377]
[1759246953422,2.42977937,4115.6,4115.5,0.5606]
[1759246954011,0.001,4115.9,4115.5,0.7983]
[1759246954334,0.001,4115.9,4115.6,0.6767]
[1759246954533,2.43060227,4115.9,4115.8,0.1216]
[1759246955228,2.43060227,4115.9,4115.8,0.3593]
[1759246955837,0.001,4115.9,4115.8,0.3593]
[1759246956005,0.001,4115.9,4115.8,0.7983]
[1759246956527,0.001,4115.9,4115.8,1.12111318]
[1759246956932,0.001,4115.9,4115.8,4.36707109]
[1759246957136,0.001,4115.9,4115.8,4.34277448]
[1759246957310,0.001,4115.9,4115.8,2.01046721]
[1759246957634,0.001,4115.9,4115.8,4.44012851]
[1759246959414,0.001,4115.9,4115.8,4.95536888]
[1759246959638,0.001,4115.9,4115.8,4.93107227]
[1759246962137,0.001,4115.9,4115.8,7.83207227]
[1759246963646,0.001,4115.9,4115.8,10.23207227]
[1759246964535,0.001,4116.4,4115.8,10.23207227]
[1759246964536,0.001,4116.4,4116.3,0.792]
[1759246964846,0.001,4116.4,4116.3,26.11257203]
[1759246965013,0.001,4116.4,4116.3,29.1803838]
[1759246965214,0.001,4116.8,4116.7,3.22113012]
[1759246965445,0.001,4118.2,4117.7,0.792]
[1759246965747,0.001,4118.2,4118.1,3.22030431]
[1759246965924,0.001,4118.2,4118.1,3.691]
[1759246966246,0.001,4118.2,4118.1,4.53853165]
[1759246966457,0.001,4118.2,4118.1,6.96683596]
[1759246966818,0.001,4118.2,4118.1,7.42603596]
[1759246967018,0.001,4118.2,4118.1,4.53853165]
[1759246967219,0.001,4118.2,4118.1,6.96683596]
[1759246967731,0.001,4118.2,4118.1,7.42603596]
[1759246968956,0.001,4118.2,4118.1,4.99773165]
[1759246969136,0.001,4118.2,4118.1,6.96683596]
[1759246969528,0.001,4118.2,4118.1,7.42603596]
[1759246970960,0.001,4118.2,4118.1,7.91451678]
[1759246973823,0.001,4118.2,4118.1,8.01180428]
[1759246975133,0.001,4118.2,4118.1,8.13340428]
[1759246975435,0.001,4118.7,4118.1,8.13340428]
[1759246975436,0.001,4118.7,4118.6,3.22000951]
[1759246975647,0.001,4118.7,4118.6,6.82669912]
[1759246975860,0.001,4118.7,4118.6,9.89721903]
[1759246976027,0.001,4118.7,4118.6,10.62675996]
[1759246980260,0.001,4118.7,4118.6,21.83691356]
[1759246981773,0.001,4119.1,4119.0,3.21977373]
[1759246981932,0.001,4119.1,4119.0,12.18670563]
[1759246982136,0.001,4119.1,4119.0,12.8572279]
[1759246982464,0.001,4119.1,4119.0,13.5465279]
[1759246982869,0.001,4119.1,4119.0,15.9465279]
[1759246983965,0.001,4120.4,4119.5,0.792]
[1759246984166,0.001,4120.4,4120.3,8.03208454]
[1759246984367,0.001,4120.4,4120.3,11.04668454]
[1759246984566,0.001,4120.4,4120.3,11.83868454]
[1759246984797,0.001,4120.4,4120.3,6.23360774]
[1759246985177,0.001,4120.4,4120.3,0.9136]
[1759246985380,0.001,4120.4,4120.3,10.0573908]
[1759246985584,0.2475,4120.4,4120.3,12.48439854]
[1759246985899,0.6903,4120.4,4120.3,10.0573908]
[1759246986676,0.001,4120.4,4120.3,12.48439854]
[1759246986878,0.6903,4120.4,4120.3,10.0573908]
[1759246987268,0.6903,4120.4,4120.3,12.48439854]
[1759246987465,0.001,4120.4,4120.3,12.48439854]
[1759246988502,0.001,4120.4,4120.3,12.98170917]
[1759246989478,0.6903,4120.4,4120.3,4.94962463]
[1759246989683,0.6903,4120.4,4120.3,4.94762463]
[1759246989905,0.001,4120.4,4120.3,7.37463237]
[1759246992130,0.001,4120.4,4120.3,3.50991063]
[1759246992131,0.679,4120.4,4120.3,3.50991063]
[1759246993691,3.10594883,4120.4,4120.3,0.1216]
[1759246994398,0.679,4120.4,4120.3,0.1216]
[1759246994594,3.10594883,4120.4,4120.3,3.0116]
[1759246995524,3.10594883,4120.4,4120.3,0.1216]
[1759246995739,3.65922822,4120.4,4120.3,0.1216]
[1759246996244,2.42736121,4119.7,4119.6,0.47721732]
[1759246996426,3.59082588,4119.7,4119.6,0.47721732]
[1759246996723,2.42753799,4119.4,4119.3,0.1216]
[1759246997124,3.10553799,4119.4,4119.3,0.1216]
[1759246999629,2.42793478,4118.8,4118.1,5.6050768]
[1759246999799,0.48546467,4119.7,4118.2,2.889]
[1759246999800,2.42785122,4118.9,4118.2,2.889]
[1759247000000,2.42785122,4118.9,4118.7,0.1216]
[1759247000001,2.65885122,4118.9,4118.7,0.1216]
[1759247000201,2.65885122,4118.9,4118.8,2.889]
[1759247001211,2.42778722,4119.0,4118.8,2.889]
[1759247001415,0.2362,4119.2,4118.8,2.889]
[1759247001626,2.42771479,4119.1,4118.8,2.889]
[1759247001900,0.666,4119.6,4118.9,0.26657832]
[1759247002105,2.42764707,4119.3,4118.9,0.26657832]
[1759247002501,2.42764707,4119.3,4119.2,0.1216]
[1759247002702,3.09364707,4119.3,4119.2,3.0096]
[1759247003835,2.4,4120.0,4119.2,3.0096]
[1759247004141,2.42742573,4119.6,4119.2,3.2519]
[1759247004332,2.42742573,4119.6,4119.2,2.888]
[1759247004512,2.42736121,4119.7,4119.2,3.1303]
[1759247004712,2.42742013,4119.6,4119.5,0.1216]
[1759247005110,2.42842013,4119.6,4119.5,0.1216]
[1759247005509,2.66462013,4119.6,4119.5,0.1216]
[1759247005710,2.66462013,4119.6,4119.5,3.0096]
[1759247007239,2.66462013,4119.6,4119.5,3.0086]
[1759247007945,3.09442013,4119.6,4119.5,3.0086]
[1759247008113,3.09442013,4119.6,4119.5,0.1216]
[1759247008313,3.09442013,4119.6,4119.5,3.0086]
[1759247010334,2.42842013,4119.6,4119.5,3.0086]
[1759247010535,0.001,4119.6,4119.5,4.00616]
[1759247010712,0.001,4119.6,4119.5,4.79816]
[1759247010916,0.001,4119.6,4119.5,7.22563906]
[1759247011225,0.001,4119.6,4119.5,4.79816]
[1759247012544,0.001,4119.6,4119.5,0.1216]
[1759247012715,3.09442013,4119.6,4119.5,0.1216]
[1759247012911,3.09442013,4119.6,4119.5,3.0076]
[1759247013521,3.09442013,4119.6,4119.5,0.1216]
[1759247013818,2.42765585,4119.2,4119.1,0.002]
[1759247014017,2.42765585,4119.2,4119.1,2.888]
[1759247014220,2.42763943,4119.3,4119.1,3.0096]
[1759247014419,0.666,4119.5,4119.1,3.0096]
[1759247014646,2.42765585,4119.2,4119.1,3.0096]
[1759247014916,3.09353799,4119.4,4119.1,3.0096]
[1759247014917,2.42765175,4119.3,4119.1,3.0096]
[1759247015117,2.42765585,4119.2,4119.1,3.0096]
[1759247016048,2.42765585,4119.2,4119.1,0.1236]
[1759247016225,3.09365585,4119.2,4119.1,3.0086]
[1759247016439,3.09365585,4119.2,4119.1,0.1236]
[1759247017049,3.64577568,4119.2,4119.1,0.1236]
[1759247017253,3.64577568,4119.2,4119.1,0.002]
[1759247017453,3.64577568,4119.2,4118.6,0.002]
[1759247017454,4.82771479,4119.1,4118.6,0.002]
[1759247017755,9.03812812,4118.7,4118.6,0.002]
[1759247018141,9.70412812,4118.7,4118.6,0.002]
[1759247018337,3.76107617,4118.7,4118.6,0.002]
[1759247018543,6.16107617,4118.7,4118.6,0.002]
[1759247018717,6.16107617,4118.7,4118.2,0.002]
[1759247018718,2.42818638,4118.3,4118.2,1e-08]
[1759247018925,7.83478638,4118.3,4118.2,1e-08]
[1759247019136,8.50078638,4118.3,4118.2,1e-08]
[1759247019348,8.93130621,4118.3,4118.2,1e-08]
[1759247019828,9.72330621,4118.3,4118.2,1e-08]
[1759247020570,24.01925339,4118.3,4118.2,1e-08]
[1759247021363,24.01925339,4118.3,4116.8,0.002]
[1759247021364,2.42901212,4116.9,4116.8,0.002]
[1759247021689,7.71401212,4116.9,4116.8,0.002]
[1759247022005,8.96693773,4116.9,4116.8,0.002]
[1759247023163,2.42924814,4116.5,4116.4,1e-08]
[1759247023482,8.50524814,4116.5,4116.4,1e-08]
[1759247023985,9.21264814,4116.5,4116.4,1e-08]
[1759247024587,9.31104959,4116.5,4116.4,1e-08]
[1759247024775,9.86316942,4116.5,4116.4,1e-08]
[1759247026277,6.08876797,4116.5,4116.4,1e-08]
[1759247026471,8.97276797,4116.5,4116.4,1e-08]
[1759247026986,6.08876797,4116.5,4116.4,1e-08]
[1759247027190,8.97376797,4116.5,4116.4,1e-08]
[1759247028098,8.26536797,4116.5,4116.4,1e-08]
[1759247028254,5.38136797,4116.5,4116.4,1e-08]
[1759247028760,8.26536797,4116.5,4116.4,1e-08]
[1759247029257,8.38696797,4116.5,4116.4,1e-08]
[1759247029459,9.09436797,4116.5,4116.4,1e-08]
[1759247029957,8.38696797,4116.5,4116.4,1e-08]
[1759247030663,8.38696797,4116.5,4116.4,0.66020001]
[1759247030664,4.95084814,4116.5,4116.4,0.66020001]
[1759247030865,4.95084814,4116.5,4116.4,0.22700001]
[1759247031065,4.95084814,4116.5,4116.4,1e-08]
[1759247031762,2.4,4116.5,4116.4,0.66020001]
[1759247032184,2.884,4116.7,4116.4,0.66020001]
[1759247032383,2.42924814,4116.5,4116.4,0.66020001]
[1759247032689,5.31324814,4116.5,4116.4,1e-08]
[1759247032890,8.65644707,4116.5,4116.4,1e-08]
[1759247034212,7.71324814,4116.5,4116.4,0.22700001]
[1759247034573,7.71324814,4116.5,4116.4,1e-08]
[1759247036713,8.42064814,4116.5,4116.4,1e-08]
[1759247040501,9.21264814,4116.5,4116.4,1e-08]
[1759247041434,9.21264814,4116.5,4116.0,0.002]
[1759247041435,2.42948422,4116.1,4116.0,1e-08]
[1759247041731,8.62508422,4116.1,4116.0,1e-08]
[1759247041940,8.62508422,4116.1,4114.3,0.229]
[1759247041941,2.43019271,4114.9,4114.3,0.229]
[1759247042232,7.83379271,4114.9,4114.3,0.229]
[1759247043233,7.83379271,4114.9,4114.5,0.4332]
[1759247043556,7.83379271,4114.9,4114.6,0.227]
[1759247052181,7.83379271,4114.9,4114.3,0.002]
[1759247052345,8.53719271,4114.9,4114.3,0.002]
[1759247053369,4.95179271,4114.9,4114.3,0.002]
[1759247053562,7.83279271,4114.9,4114.8,0.6898]
[1759247053763,7.83279271,4114.9,4114.8,0.2467]
[1759247053962,7.83279271,4114.9,4114.8,0.002]
[1759247054490,8.06539271,4114.9,4114.8,0.002]
[1759247055081,8.41459271,4114.9,4114.8,0.002]
[1759247055280,7.71119271,4114.9,4114.8,0.002]
[1759247055584,8.41459271,4114.9,4114.8,0.002]
[1759247057184,7.71119271,4114.9,4114.8,0.002]
[1759247057385,7.71019271,4114.9,4114.8,0.002]
[1759247058182,7.95649271,4114.9,4114.8,0.002]
[1759247058802,7.71019271,4114.9,4114.8,0.002]
[1759247059396,8.41759271,4114.9,4114.8,0.002]
[1759247060092,7.95649271,4114.9,4114.8,0.002]
[1759247060974,7.71019271,4114.9,4114.8,0.002]
[1759247061203,7.95649271,4114.9,4114.8,0.002]
[1759247061714,7.71019271,4114.9,4114.8,0.002]
[1759247062303,7.95649271,4114.9,4114.8,0.002]
[1759247062905,7.71019271,4114.9,4114.8,0.002]
[1759247063209,7.71019271,4114.9,4113.9,0.002]
[1759247063210,2.43072435,4114.0,4113.9,0.002]
[1759247063414,5.30972435,4114.0,4113.9,0.2436]
[1759247063626,5.30972435,4114.0,4113.9,0.7023]